bitfinex-derivatives/quotes_SOLF0:USTF0_20250113
["timestamp","ask_amount","ask_price","bid_price","bid_amount"]
[1736806743332,16.10356493,182.79,182.69,6.02]
[1736806743524,2.7371,182.76,182.71,2.7377]
[1736806744325,16.10356493,182.79,182.69,6.02]
[1736806744927,2.7367,182.79,182.74,2.7372]
[1736806745129,12.94026493,182.85,182.71,12.94026493]
[1736806745327,12.94026493,182.85,182.74,12.94026493]
[1736806746330,3.2096,182.87,182.77,12.94026493]
[1736806746535,3.2096,182.87,182.78,6.02]
[1736806746732,3.2096,182.87,182.8,2.7364]
[1736806746733,2.7356,182.86,182.8,2.7364]
[1736806746929,12.94026493,182.85,182.73,6.02]
[1736806747235,12.94026493,182.85,182.75,12.94026493]
[1736806747431,15.67596493,182.85,182.78,2.7367]
[1736806747734,15.67596493,182.85,182.75,12.94026493]
[1736806747934,15.67596493,182.85,182.78,2.7366]
[1736806748238,15.67596493,182.85,182.75,12.94026493]
[1736806748428,2.7355,182.86,182.75,12.94026493]
[1736806748734,2.7355,182.86,182.8,2.7363]
[1736806749127,2.7355,182.86,182.8,6.02]
[1736806749333,12.94026493,182.88,182.8,6.02]
[1736806750831,15.67556493,182.88,182.82,2.7361]
[1736806751133,2.7353,182.88,182.82,2.7361]
[1736806751734,2.7354,182.87,182.82,2.7361]
[1736806753642,2.7358,182.84,182.78,2.7366]
[1736806753945,2.7358,182.84,182.77,6.02]
[1736806754245,2.7355,182.86,182.81,2.7361]
[1736806754938,15.67546493,182.88,182.83,2.7359]
[1736806756541,2.7357,182.85,182.8,2.7363]
[1736806760054,12.94026493,182.85,182.74,93.88]
[1736806760252,12.94026493,182.82,182.75,6.02]
[1736806760451,2.7358,182.84,182.79,2.7365]
[1736806760643,2.7358,182.84,182.75,6.02]
[1736806760644,2.7358,182.84,182.76,12.94026493]
[1736806760953,12.94026493,182.85,182.81,2.7362]
[1736806761156,2.7355,182.86,182.81,2.7362]
[1736806761656,15.67546493,182.88,182.83,2.7358]
[1736806763653,2.7351,182.89,182.84,2.7357]
[1736806763852,14.56406493,182.91,182.84,2.7357]
[1736806764249,151.62546057,182.98,182.9,2.7349]
[1736806764554,151.62546057,182.98,182.89,6.02]
[1736806764555,12.94026493,182.98,182.89,6.02]
[1736806764751,2.7342,182.95,182.9,2.7349]
[1736806765651,2.7342,182.95,182.91,2.7347]
[1736806765857,12.94026493,182.98,182.89,6.02]
[1736806766153,2.734,182.97,182.89,18.96026493]
[1736806767049,2.734,182.97,182.93,2.7344]
[1736806767658,2.7337,182.98,182.94,2.7343]
[1736806767955,20.66114295,183.06,182.89,26.68114295]
[1736806768155,2.7332,183.02,182.9,1.7161]
[1736806768347,5.0645,183.05,182.92,20.66114295]
[1736806768753,2.733,183.04,182.98,2.7336]
[1736806768954,2.733,183.04,182.98,8.7536]
[1736806769159,5.0645,183.05,182.98,6.02]
[1736806769456,2.7325,183.06,182.98,6.02]
[1736806770653,2.7325,183.06,182.99,2.7334]
[1736806770946,2.7325,183.06,182.98,6.02]
[1736806771150,2.7325,183.06,182.99,1.6722]
[1736806771853,2.7325,183.06,183.0,2.7333]
[1736806772551,20.66114295,183.12,183.0,2.7333]
[1736806772756,20.66114295,183.09,182.98,6.0]
[1736806772959,3.2244,183.08,182.98,6.0]
[1736806773152,2.7329,183.04,182.98,8.7336]
[1736806774655,2.7333,183.02,182.96,2.7339]
[1736806774856,20.66114295,183.06,182.97,6.0]
[1736806775456,20.66114295,183.06,182.92,1.5598]
[1736806775655,20.66114295,183.03,182.93,6.0]
[1736806776658,20.66114295,183.03,182.82,3.2075]
[1736806776659,20.66114295,182.99,182.9,6.0]
[1736806777060,3.2555,182.98,182.89,93.84]
[1736806777359,4.964,182.98,182.89,93.84]
[1736806777655,2.7341,182.96,182.91,2.7347]
[1736806777856,4.964,182.98,182.89,93.84]
[1736806778059,151.62546057,183.1,182.89,93.84]
[1736806778357,20.66114295,183.04,182.95,2.7341]
[1736806778758,20.66114295,183.04,182.94,2.7343]
[1736806779153,2.7337,182.99,182.94,2.7343]
[1736806779358,2.7337,182.99,182.95,2.7341]
[1736806780261,2.7337,182.98,182.9,20.66114295]
[1736806780461,2.7337,182.98,182.94,2.7343]
[1736806782760,2.7337,182.98,182.93,2.7344]
[1736806783352,2.7335,183.0,182.94,2.7342]
[1736806783557,3.1683,183.05,182.95,6.0]
[1736806783856,2.7332,183.02,182.97,2.7337]
[1736806784060,3.1683,183.05,182.95,6.0]
[1736806784363,2.7327,183.05,183.0,2.7333]
[1736806785451,2.7325,183.07,183.02,2.7331]
[1736806785657,2.7325,183.07,183.02,8.7331]
[1736806785851,1.6718,183.1,183.02,6.0]
[1736806787160,2.7322,183.08,183.04,2.7328]
[1736806787360,1.7021,183.11,183.02,6.0]
[1736806787561,1.652,183.13,183.02,26.66114295]
[1736806787757,2.7318,183.11,183.07,2.7323]
[1736806787958,1.652,183.13,183.07,2.7323]
[1736806788858,2.7319,183.11,183.07,2.7323]
[1736806789060,1.652,183.13,183.07,2.7323]
[1736806789264,1.652,183.13,183.03,2.7329]
[1736806789455,1.652,183.13,183.02,6.0]
[1736806789655,1.6052,183.16,183.02,6.0]
[1736806789960,1.6977,183.17,183.02,6.0]
[1736806790160,3.3474,183.17,183.02,6.0]
[1736806791263,3.3474,183.17,183.03,20.66114295]
[1736806791762,2.7312,183.16,183.11,2.7317]
[1736806792464,2.7312,183.16,183.09,26.66114295]
[1736806792961,2.7312,183.16,183.11,2.7318]
[1736806793360,2.7309,183.18,183.11,12.88153936]
[1736806793564,2.7309,183.18,183.13,2.7314]
[1736806794452,2.7304,183.21,183.11,12.88153936]
[1736806794652,1.6717,183.22,183.11,12.88153936]
[1736806795362,1.6717,183.22,183.1,3.2201]
[1736806796162,2.7306,183.19,183.14,2.7312]
[1736806796463,1.6937,183.28,183.12,20.61045083]
[1736806796667,2.7303,183.21,183.16,2.7309]
[1736806796963,2.7303,183.21,183.17,6.0]
[1736806797964,2.7297,183.25,183.2,2.7303]
[1736806798164,1.5962,183.27,183.17,6.0]
[1736806798364,1.5962,183.27,183.18,20.61045083]
[1736806798664,2.7295,183.27,183.21,2.7303]
[1736806799765,2.7293,183.28,183.23,2.7299]
[1736806800167,3.2652,183.32,183.23,2.7299]
[1736806800461,3.2652,183.32,183.24,6.0]
[1736806800658,1.6982,183.36,183.24,6.0]
[1736806800864,2.7284,183.34,183.25,20.61045083]
[1736806801265,2.7284,183.34,183.27,2.7293]
[1736806801566,2.7284,183.34,183.25,20.61045083]
[1736806801962,1.6982,183.36,183.25,20.61045083]
[1736806802164,2.7282,183.35,183.25,20.61045083]
[1736806802463,20.61045083,183.39,183.29,2.729]
[1736806803365,2.7279,183.37,183.31,2.7287]
[1736806803571,2.7279,183.37,183.31,8.7287]
[1736806803762,2.7279,183.37,183.31,6.0]
[1736806803966,3.2414,183.4,183.31,6.0]
[1736806804469,3.2414,183.4,183.32,2.7286]
[1736806804671,1.6686,183.41,183.31,6.0]
[1736806804971,1.6686,183.41,183.34,2.7282]
[1736806805365,2.7276,183.39,183.34,2.7282]
[1736806806068,2.7276,183.39,183.35,2.7282]
[1736806806769,1.6686,183.41,183.35,2.7282]
[1736806807369,2.7277,183.39,183.35,2.7282]
[1736806809264,22.22825083,183.45,183.33,6.0]
[1736806809464,2.7278,183.38,183.34,2.7283]
[1736806810174,20.61045083,183.42,183.32,6.0]
[1736806810570,2.7283,183.35,183.31,6.0]
[1736806811567,2.7283,183.35,183.3,2.7288]
[1736806811870,2.7283,183.35,183.3,8.7288]
[1736806813072,2.7287,183.32,183.28,6.0]
[1736806813670,1.5988,183.38,183.27,6.0]
[1736806813869,2.7288,183.31,183.27,6.0]
[1736806814771,2.7291,183.29,183.27,6.0]
[1736806815078,2.7291,183.29,183.25,2.7296]
[1736806815274,2.7291,183.29,183.25,6.0]
[1736806816372,2.729,183.3,183.25,6.0]
[1736806817073,2.729,183.3,183.25,8.7297]
[1736806817374,2.7291,183.29,183.25,8.7297]
[1736806817772,12.86728655,183.33,183.25,6.0]
[1736806817970,2.7293,183.28,183.25,6.0]
[1736806818778,12.86728655,183.33,183.25,6.0]
[1736806819677,12.86728655,183.33,183.23,6.0]
[1736806819979,12.86728655,183.33,183.23,8.73]
[1736806821069,2.7296,183.26,183.23,8.73]
[1736806822282,2.7296,183.26,183.23,2.73]
[1736806822471,12.86728655,183.33,183.22,6.0]
[1736806822676,12.86728655,183.27,183.06,191.0]
[1736806822877,2.7304,183.21,183.16,2.7309]
[1736806823078,1.6015,183.26,183.16,6.0]
[1736806823376,4.3311,183.26,183.21,2.7301]
[1736806823577,12.86728655,183.32,183.19,12.86728655]
[1736806824384,12.86728655,183.29,183.2,6.0]
[1736806824589,1.6505,183.28,183.2,6.0]
[1736806824790,3.2436,183.28,183.2,6.0]
[1736806825084,12.86728655,183.26,183.16,6.0]
[1736806825481,12.86728655,183.19,183.0,191.0]
[1736806825679,1.58,183.18,183.04,12.86728655]
[1736806825881,2.7312,183.15,183.07,12.86728655]
[1736806826086,3.1731,183.18,183.07,12.86728655]
[1736806826275,2.7316,183.12,183.08,6.0]
[1736806826685,3.1731,183.18,183.08,6.0]
[1736806826881,12.86728655,183.16,183.08,6.0]
[1736806827281,2.7316,183.13,183.08,6.0]
[1736806827982,12.86728655,183.16,183.08,6.0]
[1736806828384,3.1731,183.18,182.91,220.56876417]
[1736806828385,12.86728655,183.09,182.91,220.56876417]
[1736806828587,12.86728655,183.09,182.96,12.86728655]
[1736806828783,12.86728655,183.09,182.97,1.00358994]
[1736806828979,12.86728655,183.09,183.0,2.7333]
[1736806828980,2.7325,183.07,183.0,2.7333]
[1736806829186,12.86728655,183.12,182.99,12.86728655]
[1736806829579,12.86728655,183.12,183.0,6.0]
[1736806830087,15.59898655,183.12,183.05,2.7325]
[1736806830489,12.86728655,183.12,183.01,1.6149]
[1736806831189,2.7332,183.02,182.94,2.7342]
[1736806831389,12.86728655,183.03,182.91,14.48218655]
[1736806831589,12.86728655,183.03,182.92,1.00403133]
[1736806831986,12.86728655,183.03,182.91,14.48218655]
[1736806832382,2.7333,183.01,182.94,2.7342]
[1736806832687,12.86728655,183.0,182.89,7.6065]
[1736806832889,16.16538655,183.0,182.89,6.0]
[1736806833097,2.7337,182.99,182.91,2.7346]
[1736806833285,23.96119786,183.0,182.87,6.0]
[1736806833486,23.96119786,183.0,182.88,6.0]
[1736806834192,26.69459786,183.0,182.88,6.0]
[1736806835093,3.2981,183.0,182.96,2.734]
[1736806835294,3.2981,183.0,182.88,6.0]
[1736806836492,3.2981,183.0,182.91,2.7347]
[1736806836683,3.2981,183.0,182.88,6.0]
[1736806837897,3.2981,183.0,182.95,2.7341]
[1736806838394,6.0316,183.0,182.93,2.7344]
[1736806839395,3.2981,183.0,182.94,2.7343]
[1736806839592,3.2981,183.0,182.88,6.0]
[1736806840488,3.2981,183.0,182.95,2.7341]
[1736806840693,3.2981,183.0,182.88,6.0]
[1736806842098,3.2981,183.0,182.96,2.734]
[1736806843294,3.2981,183.0,182.88,6.0]
[1736806843495,1.7128,183.02,182.9,20.66309786]
[1736806843700,3.1397,183.05,182.9,20.66309786]
[1736806844097,3.1397,183.05,183.0,2.7333]
[1736806844596,5.8724,183.05,183.0,2.7333]
[1736806844997,5.8724,183.05,183.01,2.7332]
[1736806845695,5.8724,183.05,182.9,20.66309786]
[1736806845901,3.1397,183.05,183.02,2.7331]
[1736806846601,20.66309786,183.06,182.95,6.0]
[1736806846902,20.66309786,183.06,183.04,2.7327]
[1736806847102,20.66309786,183.06,182.95,6.0]
[1736806847402,20.66309786,183.06,182.99,2.7336]
[1736806847603,20.66309786,183.06,182.96,1.5937]
[1736806848101,20.66309786,183.06,183.03,2.7329]
[1736806849605,20.66309786,183.06,182.96,1.5937]
[1736806849805,20.66309786,183.06,182.96,3.3058]
[1736806850101,20.66309786,183.09,182.96,3.3058]
[1736806850500,20.66309786,183.09,182.97,1.7023]
[1736806850901,20.66309786,183.09,183.06,2.7324]
[1736806851203,20.66309786,183.09,182.97,1.7023]
[1736806851404,20.66309786,183.09,183.05,2.7325]
[1736806852701,20.66309786,183.09,182.97,1.7023]
[1736806852901,20.66309786,183.09,183.06,2.7325]
[1736806853404,12.90055385,183.07,183.06,2.7325]
[1736806857208,3.3585,183.12,183.02,6.0]
[1736806857506,12.90055385,183.1,183.02,6.0]
[1736806857803,12.90055385,183.1,183.07,2.7324]
[1736806858104,12.90055385,183.08,183.07,2.7324]
[1736806859708,12.90055385,183.08,182.97,1.7023]
[1736806859901,12.90055385,183.04,182.98,6.0]
[1736806860501,12.90055385,183.04,182.96,3.3058]
[1736806860708,12.90055385,183.04,182.97,6.0]
[1736806861704,12.90055385,183.04,182.96,3.3058]
[1736806861905,12.90055385,183.04,183.01,2.7331]
[1736806862703,12.90055385,183.04,182.91,1.6856]
[1736806862903,12.90055385,183.0,182.91,1.6856]
[1736806863102,12.90055385,183.0,182.96,2.7339]
[1736806863807,12.90055385,183.0,182.91,6.0]
[1736806864004,12.90055385,182.97,182.91,6.0]
[1736806864608,12.90055385,182.97,182.95,2.7341]
[1736806865608,12.90055385,182.97,182.96,2.734]
[1736806866111,12.90055385,183.02,182.89,22.16415385]
[1736806866905,15.63375385,183.02,182.97,2.7337]
[1736806867101,15.63375385,183.02,182.89,22.16415385]
[1736806867608,12.90055385,182.99,182.89,9.2636]
[1736806868009,12.90055385,182.99,182.92,2.7346]
[1736806868313,12.90055385,182.99,182.89,9.2636]
[1736806868913,12.90055385,183.02,182.97,2.7337]
[1736806870018,15.63375385,183.02,182.97,2.7337]
[1736806871212,2.7333,183.01,182.97,2.7337]
[1736806871723,12.90055385,183.02,182.89,9.2636]
[1736806871918,12.90055385,183.02,182.95,2.734]
[1736806873110,2.7334,183.0,182.95,2.734]
[1736806874511,2.7334,183.0,182.89,9.2636]
[1736806874706,2.7333,183.01,182.89,9.2636]
[1736806874911,12.90055385,183.02,182.89,9.2636]
[1736806876119,12.90055385,183.02,182.95,2.7341]
[1736806876120,2.7336,182.99,182.95,2.7341]
[1736806876414,12.90055385,183.02,182.95,2.7341]
[1736806876919,2.7335,183.0,182.95,2.7341]
[1736806877116,12.90055385,182.99,182.92,2.7346]
[1736806877418,12.90055385,182.99,182.89,9.2636]
[1736806877920,2.7338,182.98,182.89,9.2636]
[1736806878918,12.90055385,182.99,182.89,6.0]
[1736806879120,12.90055385,182.99,182.92,2.7346]
[1736806879818,2.7339,182.97,182.92,2.7346]
[1736806881116,2.7339,182.97,182.93,2.7344]
[1736806882121,12.90055385,182.96,182.93,2.7344]
[1736806882622,12.90055385,182.96,182.88,93.76]
[1736806882821,2.7342,182.95,182.91,2.7347]
[1736806883422,8.26819125,182.92,182.91,2.7347]
[1736806883918,8.26819125,182.92,182.87,2.7352]
[1736806884121,8.26819125,182.88,182.82,105.32818938]
[1736806884325,8.26819125,182.88,182.86,2.7354]
[1736806884522,8.26819125,182.9,182.84,6.0]
[1736806885321,2.7347,182.92,182.84,6.0]
[1736806885516,8.26819125,182.89,182.84,14.26819125]
[1736806885716,8.26819125,182.91,182.88,2.7351]
[1736806886429,8.26819125,182.91,182.84,14.26819125]
[1736806887128,8.26819125,182.89,182.86,2.7355]
[1736806887428,8.26819125,182.89,182.84,14.26819125]
[1736806887628,8.26819125,182.89,182.88,2.7352]
[1736806888524,8.26819125,182.89,182.87,2.7353]
[1736806891322,8.26819125,182.89,182.84,6.0]
[1736806891529,8.26819125,182.89,182.86,2.7354]
[1736806891925,8.26819125,182.89,182.84,6.0]
[1736806892823,8.26819125,182.89,182.87,2.7353]
[1736806893128,8.26819125,182.89,182.86,2.7355]
[1736806893521,8.26819125,182.87,182.8,1.6217]
[1736806893724,8.26819125,182.85,182.79,108.06819125]
[1736806894532,8.26819125,182.85,182.83,2.7358]
[1736806895028,8.26819125,182.85,182.79,108.06819125]
[1736806895231,8.26819125,182.85,182.79,102.06819125]
[1736806895423,8.26819125,182.85,182.79,93.8]
[1736806896437,3.2733,182.93,182.79,102.06819125]
[1736806896730,8.26819125,182.87,182.81,8.26819125]
[1736806897127,8.26819125,182.87,182.84,2.7357]
[1736806897333,8.26819125,182.85,182.79,93.8]
[1736806897833,2.7356,182.86,182.79,93.8]
[1736806898023,8.26819125,182.85,182.79,93.8]
[1736806898222,8.26819125,182.85,182.82,2.736]
[1736806898621,8.26819125,182.85,182.8,8.26819125]
[1736806899232,8.26819125,182.85,182.79,93.8]
[1736806899928,8.26819125,182.85,182.82,2.7361]
[1736806900433,8.26819125,182.85,182.81,2.7362]
[1736806900636,11.00389125,182.85,182.81,2.7362]
[1736806901033,8.26819125,182.83,182.81,2.7362]
[1736806901532,8.26819125,182.83,182.79,2.7364]
[1736806901730,8.26819125,182.83,182.77,6.0]
[1736806902834,8.26819125,182.83,182.76,9.89079125]
[1736806903037,8.26819125,182.79,182.72,1.6299]
[1736806903239,8.26819125,182.79,182.73,6.0]
[1736806903933,8.26819125,182.79,182.74,2.7373]
[1736806904129,8.26819125,182.77,182.72,6.0]
[1736806905027,8.26819125,182.77,182.76,2.737]
[1736806905633,8.26819125,182.77,182.75,2.7371]
[1736806907034,8.26819125,182.77,182.7,1.6747]
[1736806907231,8.26819125,182.75,182.7,1.6747]
[1736806907434,8.26819125,182.75,182.73,2.7374]
[1736806908538,8.26819125,182.75,182.7,2.7379]
[1736806908737,8.26819125,182.73,182.66,14.26819125]
[1736806909439,8.26819125,182.73,182.67,6.0]
[1736806910139,8.26819125,182.71,182.65,101.67987325]
[1736806911438,8.26819125,182.71,182.65,94.02767325]
[1736806911841,11.00629125,182.69,182.62,1.5755]
[1736806912038,8.26819125,182.67,182.62,1.5755]
[1736806912729,8.26819125,182.67,182.61,8.26819125]
[1736806912930,8.26819125,182.67,182.63,2.7388]
[1736806913537,8.26819125,182.67,182.6,6.0]
[1736806913538,8.26819125,182.67,182.55,1.5531]
[1736806913739,8.26819125,182.65,182.59,8.26819125]
[1736806913938,3.3309,182.72,182.61,8.26819125]
[1736806914140,8.26819125,182.68,182.64,2.7387]
[1736806914638,8.26819125,182.68,182.61,8.26819125]
[1736806914935,8.26819125,182.68,182.63,2.7388]
[1736806915140,8.26819125,182.68,182.61,8.26819125]
[1736806915543,8.26819125,182.68,182.63,2.7388]
[1736806915741,8.26819125,182.68,182.61,8.26819125]
[1736806916036,8.26819125,182.7,182.63,8.26819125]
[1736806917142,8.26819125,182.7,182.63,14.26819125]
[1736806917533,2.7373,182.75,182.65,8.26819125]
[1736806917737,1.6719,182.77,182.65,8.26819125]
[1736806917738,8.26819125,182.73,182.65,8.26819125]
[1736806917934,8.26819125,182.75,182.67,8.26819125]
[1736806918140,1.6719,182.77,182.71,8.26819125]
[1736806918444,9.94009125,182.77,182.71,8.26819125]
[1736806918641,2.7363,182.81,182.75,2.7372]
[1736806918846,8.26819125,182.79,182.75,2.7372]
[1736806919043,1.6459,182.83,182.76,2.737]
[1736806919337,8.26819125,182.8,182.76,2.737]
[1736806919538,8.26819125,182.8,182.73,8.26819125]
[1736806919738,8.26819125,182.82,182.75,8.26819125]
[1736806920639,8.26819125,182.84,182.77,8.26819125]
[1736806920835,8.26819125,182.84,182.79,8.26819125]
[1736806921145,8.26819125,182.87,182.79,8.26819125]
[1736806921440,12.92813942,182.88,182.78,1.6306]
[1736806922241,15.66343942,182.88,182.78,1.6306]
[1736806922547,12.92813942,182.91,182.79,12.92813942]
[1736806922847,12.92813942,182.91,182.86,2.7354]
[1736806923042,5.80481055,182.94,182.84,6.0]
[1736806923345,18.73294997,182.94,182.89,2.735]
[1736806923848,18.73294997,182.94,182.85,6.0]
[1736806924444,12.92813942,182.94,182.85,6.0]
[1736806924645,12.92813942,182.94,182.88,2.7352]
[1736806925947,15.66253942,182.94,182.85,6.0]
[1736806926750,15.66253942,182.94,182.88,2.7352]
[1736806926938,12.92813942,182.94,182.88,2.7352]
[1736806930150,12.92813942,182.94,182.89,2.7349]
[1736806930751,12.92813942,182.97,182.85,18.92813942]
[1736806931248,151.62546057,183.09,182.96,2.734]
[1736806931448,12.92813942,183.02,182.96,2.734]
[1736806932947,2.7333,183.01,182.96,2.734]
[1736806933552,2.7333,183.01,182.97,2.7338]
[1736806935353,2.7334,183.0,182.97,2.7338]
[1736806935953,2.7334,183.0,182.96,2.734]
[1736806936755,12.92813942,183.02,182.96,2.734]
[1736806936960,2.7333,183.01,182.96,2.734]
[1736806938758,12.92813942,183.02,182.96,2.734]
[1736806938955,2.7334,183.0,182.96,2.734]
[1736806940056,2.7328,183.05,182.94,12.92813942]
[1736806940659,12.92813942,183.06,182.94,12.92813942]
[1736806940954,2.733,183.03,182.94,12.92813942]
[1736806941459,2.733,183.03,182.96,2.7339]
[1736806941663,2.733,183.03,182.94,12.92813942]
[1736806942066,2.733,183.03,182.97,2.7337]
[1736806943366,12.92813942,183.03,182.95,2.7341]
[1736806943563,12.92813942,183.03,182.93,7.7043]
[1736806944867,2.7333,183.01,182.96,2.7339]
[1736806947568,8.26103158,183.0,182.96,2.7339]
[1736806949771,10.99443158,183.0,182.96,2.7339]
[1736806950666,8.26103158,182.98,182.93,6.0]
[1736806951362,8.26103158,182.98,182.94,2.7343]
[1736806953869,10.99473158,182.98,182.94,2.7343]
[1736806954468,2.7342,182.95,182.88,200.3529]
[1736806954666,8.26103158,182.93,182.88,200.3529]
[1736806954865,8.26103158,182.93,182.9,2.7348]
[1736806955063,8.26103158,182.93,182.88,200.3529]
[1736806955064,8.26103158,182.93,182.88,192.6755]
[1736806955469,8.26103158,182.93,182.89,2.735]
[1736806956670,10.99553158,182.93,182.89,2.735]
[1736806957465,8.26103158,182.93,182.87,93.86]
[1736806957671,8.26103158,182.91,182.88,2.7352]
[1736806958072,8.26103158,182.91,182.87,93.86]
[1736806958270,8.26103158,182.91,182.89,2.7348]
[1736806959172,8.26103158,182.91,182.87,93.86]
[1736806959371,10.99563158,182.91,182.87,93.86]
[1736806960369,8.26103158,182.91,182.87,96.5951]
[1736806961465,163.07156057,183.03,182.88,8.26103158]
[1736806961665,8.26103158,182.95,182.88,8.26103158]
[1736806961875,8.26103158,182.95,182.9,2.7346]
[1736806962872,10.99493158,182.95,182.9,2.7346]
[1736806963477,8.26103158,182.95,182.91,2.7344]
[1736806964373,8.26103158,182.95,182.92,2.7343]
[1736806966178,2.7341,182.94,182.91,2.7344]
[1736806967775,2.7341,182.94,182.92,2.7343]
[1736806968082,8.26103158,182.95,182.92,2.7343]
[1736806968278,10.99493158,182.95,182.92,2.7343]
[1736806974783,2.7341,182.94,182.92,2.7343]
[1736806979783,8.26103158,182.95,182.9,8.26103158]
[1736806979984,2.7338,182.96,182.93,2.7341]
[1736806981691,2.7338,182.96,182.9,8.26103158]
[1736806981890,2.7338,182.96,182.94,2.734]
[1736806986594,2.7335,182.98,182.95,2.7338]
[1736806986794,8.26103158,182.99,182.94,8.26103158]
[1736806986999,8.26103158,183.01,182.94,8.26103158]
[1736806987296,2.7333,183.0,182.97,2.7335]
[1736806987495,8.26103158,183.01,182.94,8.26103158]
[1736806987696,2.7325,183.05,183.01,2.7329]
[1736806987896,2.7325,183.05,182.99,8.26103158]
[1736806989196,2.7325,183.05,183.02,2.7327]
[1736806989394,8.26103158,183.06,182.99,8.26103158]
[1736806989698,10.99333158,183.06,183.03,2.7327]
[1736806990095,8.26103158,183.06,183.03,2.7327]
[1736806991095,10.99333158,183.06,183.03,2.7327]
[1736806992602,3.2463,183.08,183.01,8.26103158]
[1736806992801,10.99313158,183.07,183.04,2.7325]
[1736806994002,2.7321,183.07,183.04,2.7325]
[1736806994198,8.26103158,183.06,183.04,2.7325]
[1736806994593,8.26103158,183.06,183.01,8.26103158]
[1736806994798,2.7325,183.05,183.02,2.7329]
[1736806994999,8.26103158,183.04,183.0,5.98]
[1736806996205,10.99363158,183.04,183.0,5.98]
[1736806996608,8.26103158,183.04,183.0,5.98]
[1736806996909,8.26103158,183.06,183.0,5.98]
[1736806997305,10.99333158,183.06,183.01,2.7329]
[1736806998707,2.7321,183.07,183.02,2.7327]
[1736806998907,3.2463,183.08,183.01,8.26103158]
[1736806999103,11.50733158,183.08,183.01,8.26103158]
[1736807000009,9.95393158,183.08,183.01,8.26103158]
[1736807000210,2.7321,183.07,183.03,2.7326]
[1736807003812,8.26103158,183.06,183.03,2.7326]
[1736807004110,8.26103158,183.04,183.01,2.733]
[1736807004512,2.7323,183.06,183.02,2.7327]
[1736807004810,8.26103158,183.06,183.01,8.26103158]
[1736807005013,8.26103158,183.06,183.0,5.98]
[1736807006111,2.7325,183.05,183.01,2.733]
[1736807007010,8.26103158,183.04,183.01,2.733]
[1736807007418,8.26103158,183.04,182.95,95.51604637]
[1736807007613,8.26103158,183.02,182.97,8.26103158]
[1736807007913,8.26103158,183.02,182.96,5.98]
[1736807008313,10.99403158,183.02,182.97,2.7335]
[1736807008523,8.26103158,183.02,182.96,5.98]
[1736807008806,10.99403158,183.02,182.97,2.7336]
[1736807009013,8.26103158,183.0,182.94,108.02103158]
[1736807010007,10.99433158,183.0,182.95,2.7338]
[1736807011303,8.26103158,182.98,182.92,102.16800887]
[1736807011509,8.26103158,182.98,182.93,2.7342]
[1736807011510,10.99453158,182.98,182.93,2.7342]
[1736807013217,8.26103158,182.96,182.92,96.64127729]
[1736807015521,2.7336,182.97,182.92,96.64127729]
[1736807018221,2.7336,182.97,182.82,3.3092]
[1736807018222,8.26103158,182.94,182.84,8.26103158]
[1736807018424,3.2652,182.96,182.84,8.26103158]
[1736807018722,8.26103158,182.91,182.84,8.26103158]
[1736807018923,10.99563158,182.91,182.86,2.7352]
[1736807019325,8.26103158,182.89,182.82,5.98]
[1736807019526,8.26103158,182.89,182.83,8.26103158]
[1736807020122,10.99593158,182.89,182.84,2.7354]
[1736807020521,10.99593158,182.89,182.83,8.26103158]
[1736807021423,1.702,182.95,182.85,8.26103158]
[1736807021424,8.26103158,182.91,182.85,8.26103158]
[1736807021624,2.7347,182.9,182.85,8.26103158]
[1736807022226,2.7347,182.9,182.85,10.99633158]
[1736807023741,2.7347,182.9,182.86,2.7352]
[1736807025535,2.7344,182.92,182.88,2.7349]
[1736807025737,10.99543158,182.92,182.88,2.7349]
[1736807026340,8.26103158,182.9,182.85,2.7354]
[1736807026640,8.26103158,182.88,182.85,2.7354]
[1736807027141,8.26103158,182.9,182.87,2.7351]